fUST/lending_fUST_20250328
["ID","MTS","AMOUNT","RATE_DAILY","PERIOD"]
[356754028,1743115844654,-1701.227316,0.0004,2]
[356754029,1743115844663,-1701.227316,0.0004,2]
[356754030,1743115844673,-1701.227316,0.0004,2]
[356754031,1743115844682,-1701.227316,0.0004,2]
[356754032,1743115844691,-151.0,0.0004,14]
[356754033,1743115844703,-151.0,0.0004,14]
[356754034,1743115844713,-151.0,0.0004,14]
[356754035,1743115844722,-151.0,0.0004,14]
[356754036,1743115844732,-151.0,0.0004,14]
[356754037,1743115844741,-151.0,0.0004,14]
[356754038,1743115844751,-179.368882,0.0004,14]
[356754039,1743115844760,-179.368882,0.0004,14]
[356754040,1743115844769,-179.368882,0.0004,14]
[356754041,1743115844781,-179.368882,0.0004,14]
[356754042,1743115844790,-151.0,0.0004,14]
[356754043,1743115844799,-151.0,0.0004,14]
[356754044,1743115844808,-151.0,0.0004,14]
[356754045,1743115844818,-151.0,0.0004,14]
[356754046,1743115844827,-151.0,0.0004,14]
[356754047,1743115844836,-150.0,0.0004,2]
[356754048,1743115844847,-151.0,0.0004,14]
[356754049,1743115844856,-151.0,0.0004,14]
[356754050,1743115844865,-151.0,0.0004,14]
[356754051,1743115844875,-151.0,0.0004,14]
[356754052,1743115844884,-151.0,0.0004,14]
[356754053,1743115844893,-211.176326,0.0004,14]
[356754054,1743115844903,-571.744593,0.0004,14]
[356754055,1743115844912,-571.744593,0.0004,14]
[356754056,1743115844921,-166.369297,0.0004,14]
[356754057,1743115844930,-571.744593,0.0004,14]
[356754058,1743115844940,-571.744593,0.0004,14]
[356754059,1743115844949,-151.0,0.0004,14]
[356754060,1743115844960,-151.0,0.0004,14]
[356754061,1743115844970,-698.97899,0.0004,14]
[356754062,1743115844979,-698.97899,0.0004,14]
[356754063,1743115845000,-698.97899,0.0004,14]
[356754064,1743115845011,-698.97899,0.0004,14]
[356754065,1743115845020,-151.0,0.0004,14]
[356754066,1743115845030,-151.0,0.0004,14]
[356754067,1743115845039,-151.0,0.0004,14]
[356754068,1743115845049,-151.0,0.0004,14]
[356754069,1743115845059,-500.0,0.0004,32]
[356754070,1743115845070,-150.75710428,0.0004,90]
[356754071,1743115845080,-630.0,0.0004,2]
[356754072,1743115845089,-670.5557,0.0004,2]
[356754073,1743115845100,-670.5557,0.0004,2]
[356754074,1743115845110,-150.15,0.0004,90]
[356754075,1743115845120,-500.0,0.0004,90]
[356754076,1743115845130,-150.15,0.0004,90]
[356754077,1743115845139,-162.74845429,0.0004,90]
[356754078,1743115845150,-151.0,0.0004,14]
[356754079,1743115845159,-151.0,0.0004,14]
[356754080,1743115845169,-500.0,0.0004,28]
[356754081,1743115845179,-150.15,0.0004,90]
[356754082,1743115845188,-161.74340566,0.0004,90]
[356754083,1743115845198,-500.0,0.0004,90]
[356754084,1743115845208,-500.0,0.0004,90]
[356754085,1743115845217,-506.965905,0.0004,14]
[356754086,1743115845228,-642.0,0.0004,90]
[356754087,1743115845237,-500.0,0.0004,90]
[356754088,1743115845247,-506.965905,0.0004,14]
[356754089,1743115845256,-506.965905,0.0004,14]
[356754090,1743115845266,-150.15,0.0004,2]
[356754091,1743115845276,-506.965905,0.0004,14]
[356754092,1743115845285,-150.15,0.0004,90]
[356754093,1743115845295,-150.15,0.0004,2]
[356754094,1743115845305,-784.0,0.0004,90]
[356754095,1743115845315,-151.0,0.0004,14]
[356754096,1743115845325,-151.0,0.0004,14]
[356754097,1743115845334,-884.0,0.0004,2]
[356754098,1743115845344,-150.26,0.0004,90]
[356754099,1743115845353,-150.15,0.0004,90]
[356754100,1743115845363,-162.202776,0.0004,14]
[356754101,1743115845372,-162.202776,0.0004,14]
[356754102,1743115845382,-500.0,0.00040005,30]
[356754103,1743115845391,-1000.0,0.00040118,6]
[356754104,1743115845400,-150.15,0.00040137,60]
[356754105,1743115845410,-150.15,0.00040137,90]
[356754106,1743115845419,-500.0,0.00040137,90]
[356754107,1743115845429,-150.15,0.00040137,90]
[356754108,1743115845438,-505.24135674,0.00040137,28]
[356754109,1743115845447,-200.17497053,0.00040137,90]
[356754110,1743115845458,-500.0,0.00040137,90]
[356754111,1743115845468,-500.0,0.00040137,90]
[356754112,1743115845477,-642.0,0.00040137,90]
[356754113,1743115845487,-500.0,0.00040137,90]
[356754114,1743115845496,-150.15,0.00040137,90]
[356754115,1743115845506,-784.0,0.00040137,90]
[356754116,1743115845515,-884.0,0.00040137,2]
[356754117,1743115845524,-150.15,0.00040137,90]
[356754118,1743115845533,-500.0,0.00040175,30]
[356754119,1743115845543,-3000.0,0.00040212,60]
[356754120,1743115845552,-1000.0,0.00040255,6]
[356754121,1743115845561,-500.0,0.0004027,30]
[356754122,1743115845571,-200.96553452,0.00040274,60]
[356754123,1743115845581,-150.15,0.00040274,90]
[356754124,1743115845590,-728.23348463,0.00040274,90]
[356754125,1743115845600,-150.15,0.00040274,90]
[356754126,1743115845609,-873.92432188,0.00040274,90]
[356754127,1743115845619,-500.0,0.00040274,90]
[356754128,1743115845631,-642.0,0.00040274,90]
[356754129,1743115845641,-500.0,0.00040274,90]
[356754130,1743115845653,-279.26477762,0.00040274,90]
[356754131,1743115845666,-784.0,0.00040274,90]
[356754132,1743115845675,-884.0,0.00040274,2]
[356754133,1743115845685,-150.15,0.00040274,90]
[356754134,1743115845694,-1000.0,0.00040392,6]
[356754136,1743115845707,-203.0,0.0004041,30]
[356754138,1743115845717,-283.84949109,0.00040411,90]
[356754140,1743115845726,-150.15,0.00040411,90]
[356754141,1743115845735,-500.0,0.00040411,90]
[356754142,1743115845908,-642.0,0.00040411,90]
[356754143,1743115845918,-500.0,0.00040411,90]
[356754144,1743115845927,-784.0,0.00040411,90]
[356754145,1743115845937,-884.0,0.00040411,2]
[356754146,1743115845946,-150.15,0.00040411,90]
[356754147,1743115845955,-505.67631487,0.00040451,30]
[356754148,1743115845964,-1000.0,0.00040521,5]
[356754149,1743115845974,-19563.82310487,0.00040521,15]
[356754150,1743115845983,-1000.0,0.00040529,6]
[356754151,1743115845993,-150.15,0.00040548,90]
[356754152,1743115846003,-500.0,0.00040548,90]
[356754153,1743115846012,-642.0,0.00040548,90]
[356754154,1743115846022,-500.0,0.00040548,90]
[356754155,1743115846031,-784.0,0.00040548,90]
[356754156,1743115846040,-884.0,0.00040548,2]
[356754157,1743115846049,-150.15,0.00040548,90]
[356754158,1743115846059,-500.0,0.0004058,30]
[356754159,1743115846070,-500.0,0.00040628,30]
[356754160,1743115846079,-1000.0,0.00040634,10]
[356754161,1743115846088,-500.0,0.00040647,30]
[356754162,1743115846098,-1000.0,0.00040666,6]
[356754163,1743115846110,-165.45998664,0.00040685,90]
[356754164,1743115846120,-500.0,0.00040685,90]
[356754165,1743115846131,-642.0,0.00040685,90]
[356754166,1743115846141,-500.0,0.00040685,90]
[356754167,1743115846150,-784.0,0.00040685,90]
[356754168,1743115846160,-884.0,0.00040685,2]
[356754169,1743115846170,-249.25,0.00040685,90]
[356754170,1743115846180,-3000.0,0.0004076,60]
[356754171,1743115846189,-1000.0,0.00040803,6]
[356754172,1743115846198,-1097.0,0.00040815,5]
[356754173,1743115846208,-500.0,0.00040822,90]
[356754175,1743115846217,-642.0,0.00040822,90]
[356754176,1743115846226,-500.0,0.00040822,90]
[356754177,1743115846235,-784.0,0.00040822,90]
[356754178,1743115846244,-884.0,0.00040822,2]
[356754179,1743115846253,-500.0,0.00040822,30]
[356754180,1743115846262,-500.0,0.0004083,30]
[356754181,1743115846272,-500.0,0.00040894,30]
[356754182,1743115846282,-1000.0,0.0004094,6]
[356754183,1743115846292,-500.0,0.00040959,90]
[356754184,1743115846301,-642.0,0.00040959,90]
[356754185,1743115846310,-500.0,0.00040959,90]
[356754186,1743115846319,-784.0,0.00040959,90]
[356754187,1743115846329,-884.0,0.00040959,2]
[356754188,1743115846338,-12785.05,0.00041,7]
[356754189,1743115846347,-4116.21485846,0.00041,30]
[356754190,1743115846356,-1000.0,0.00041,120]
[356754191,1743115846365,-150.0,0.00041,2]
[356754192,1743115846374,-500.0,0.00041027,30]
[356754193,1743115846383,-500.0,0.00041039,5]
[356754194,1743115846392,-445.321584,0.00041068,5]
[356754195,1743115846401,-1000.0,0.00041077,6]
[356754196,1743115846410,-190.504373,0.00041095,14]
[356754197,1743115846419,-500.0,0.00041095,2]
[356754198,1743115846428,-500.0,0.00041095,2]
[356754199,1743115846437,-500.0,0.00041095,2]
[356754200,1743115846447,-500.0,0.00041095,2]
[356754201,1743115846456,-500.0,0.00041095,2]
[356754202,1743115846466,-500.0,0.00041095,2]
[356754203,1743115846476,-500.0,0.00041095,2]
[356754204,1743115846485,-550.98716253,0.00041095,2]
[356754205,1743115846494,-500.0,0.00041095,14]
[356754206,1743115846503,-500.0,0.00041095,2]
[356754207,1743115846513,-500.0,0.00041095,2]
[356754208,1743115846522,-500.0,0.00041095,2]
[356754209,1743115846532,-500.0,0.00041095,2]
[356754210,1743115846542,-1135.81,0.00041095,18]
[356754211,1743115846552,-500.0,0.00041095,2]
[356754212,1743115846562,-500.0,0.00041095,2]
[356754213,1743115846571,-151.0,0.00041095,14]
[356754214,1743115846580,-276.25137025,0.00041095,120]
[356754215,1743115846589,-500.0,0.00041095,20]
[356754216,1743115846599,-500.0,0.00041095,20]
[356754217,1743115846607,-500.0,0.00041095,20]
[356754218,1743115846616,-500.0,0.00041095,20]
[356754219,1743115846626,-500.0,0.00041095,20]
[356754220,1743115846635,-500.0,0.00041095,20]
[356754221,1743115846644,-500.0,0.00041095,20]
[356754222,1743115846653,-500.0,0.00041095,20]
[356754223,1743115846662,-244.81130734,0.00041095,20]
[356754224,1743115846671,-500.0,0.00041095,120]
[356754225,1743115846680,-500.0,0.00041095,120]
[356754226,1743115846689,-500.0,0.00041095,120]
[356754227,1743115846700,-500.0,0.00041095,120]
[356754228,1743115846710,-500.0,0.00041095,120]
[356754229,1743115846720,-500.0,0.00041095,120]
[356754230,1743115846730,-500.0,0.00041095,120]
[356754231,1743115846739,-500.0,0.00041095,120]
[356754232,1743115846750,-500.0,0.00041095,120]
[356754233,1743115846760,-500.0,0.00041095,120]
[356754234,1743115846770,-500.0,0.00041095,120]
[356754235,1743115846783,-345.61456318,0.00041095,120]
[356754236,1743115846793,-500.0,0.00041095,120]
[356754237,1743115846802,-500.0,0.00041095,120]
[356754238,1743115846812,-500.0,0.00041095,120]
[356754239,1743115846822,-541.18314994,0.00041095,120]
[356754240,1743115846832,-151.0,0.00041095,14]
[356754241,1743115846841,-383.717943,0.00041095,14]
[356754242,1743115846850,-383.717943,0.00041095,14]
[356754243,1743115846860,-275.02737583,0.00041095,120]
[356754244,1743115846870,-1701.227316,0.00041095,2]
[356754245,1743115846879,-1701.227316,0.00041095,2]
[356754246,1743115846889,-151.0,0.00041095,14]
[356754247,1743115846898,-151.0,0.00041095,14]
[356754248,1743115846907,-151.0,0.00041095,14]
[356754249,1743115846916,-500.0,0.00041095,2]
[356754250,1743115846925,-179.368882,0.00041095,14]
[356754251,1743115846934,-179.368882,0.00041095,14]
[356754252,1743115846943,-151.0,0.00041095,14]
[356754253,1743115846952,-151.0,0.00041095,14]
[356754254,1743115846962,-151.0,0.00041095,14]
[356754255,1743115846972,-151.0,0.00041095,14]
[356754256,1743115846981,-500.0,0.00041095,120]
[356754257,1743115846990,-500.0,0.00041095,120]
[356754258,1743115847000,-500.0,0.00041095,120]
[356754259,1743115847010,-500.0,0.00041095,120]
[356754260,1743115847021,-500.0,0.00041095,120]
[356754261,1743115847033,-500.0,0.00041095,120]
[356754262,1743115847044,-500.0,0.00041095,120]
[356754263,1743115847054,-500.0,0.00041095,120]
[356754264,1743115847063,-500.0,0.00041095,120]
[356754265,1743115847072,-500.0,0.00041095,120]
[356754266,1743115847081,-500.0,0.00041095,120]
[356754267,1743115847090,-500.0,0.00041095,120]
[356754268,1743115847099,-500.0,0.00041095,120]
[356754269,1743115847108,-500.0,0.00041095,120]
[356754270,1743115847118,-500.0,0.00041095,120]
[356754271,1743115847127,-500.0,0.00041095,120]
[356754272,1743115847136,-500.0,0.00041095,120]
[356754273,1743115847145,-500.0,0.00041095,120]
[356754274,1743115847154,-500.0,0.00041095,120]
[356754275,1743115847164,-500.0,0.00041095,120]
[356754276,1743115847173,-500.0,0.00041095,120]
[356754277,1743115847184,-500.0,0.00041095,120]
[356754278,1743115847195,-500.0,0.00041095,120]
[356754279,1743115847208,-204.70847627,0.00041095,120]
[356754280,1743115847219,-571.744593,0.00041095,14]
[356754281,1743115847228,-571.744593,0.00041095,14]
[356754282,1743115847237,-170.614267,0.00041095,14]
[356754283,1743115847246,-698.97899,0.00041095,14]
[356754284,1743115847255,-698.97899,0.00041095,14]
[356754285,1743115847264,-5761.44,0.00041095,120]
[356754286,1743115847274,-5761.44,0.00041095,120]
[356754287,1743115847284,-5761.44,0.00041095,120]
[356754288,1743115847295,-5761.44,0.00041095,120]
[356754289,1743115847305,-5761.44,0.00041095,120]
[356754290,1743115847315,-5761.44,0.00041095,120]
[356754291,1743115847325,-5761.44,0.00041095,120]
[356754292,1743115847336,-5761.44,0.00041095,120]
[356754293,1743115847347,-151.0,0.00041095,14]
[356754294,1743115847358,-5761.44,0.00041095,120]
[356754295,1743115847367,-5761.44,0.00041095,120]
[356754296,1743115847376,-5761.44,0.00041095,120]
[356754297,1743115847385,-5761.44,0.00041095,120]
[356754298,1743115847394,-5761.44,0.00041095,120]
[356754299,1743115847403,-5761.44,0.00041095,120]
[356754300,1743115847414,-5761.44,0.00041095,120]
[356754301,1743115847425,-5761.44,0.00041095,120]
[356754302,1743115847434,-5761.44,0.00041095,120]
[356754303,1743115847444,-5761.44,0.00041095,120]
[356754304,1743115847455,-5761.44,0.00041095,120]
[356754305,1743115847464,-5761.44,0.00041095,120]
[356754306,1743115847473,-5761.44,0.00041095,120]
[356754307,1743115847483,-5761.44,0.00041095,120]
[356754308,1743115847493,-5761.44,0.00041095,120]
[356754309,1743115847503,-5761.54372786,0.00041095,120]
[356754310,1743115847513,-151.0,0.00041095,14]
[356754311,1743115847523,-1000.0,0.00041095,7]
[356754312,1743115847534,-423.90932659,0.00041095,20]
[356754313,1743115847545,-151.0,0.00041095,14]
[356754314,1743115847555,-506.965905,0.00041095,14]
[356754315,1743115847564,-506.965905,0.00041095,14]
[356754316,1743115847573,-151.0,0.00041095,14]
[356754317,1743115847583,-500.0,0.00041095,2]
[356754318,1743115847592,-162.202776,0.00041095,14]
[356754319,1743115847601,-150.0,0.00041096,10]
[356754320,1743115847610,-150.0,0.00041096,10]
[356754321,1743115847620,-500.0,0.00041096,90]
[356754322,1743115847629,-642.0,0.00041096,90]
[356754323,1743115847638,-500.0,0.00041096,90]
[356754324,1743115847648,-784.0,0.00041096,90]
[356754325,1743115847659,-884.0,0.00041096,2]
[356754326,1743115847669,-1000.0,0.00041096,120]
[356754327,1743115847678,-1000.0,0.00041096,120]
[356754328,1743115847687,-1000.0,0.00041096,120]
[356754329,1743115847698,-203.44689,0.000411,120]
[356754330,1743115847821,-200.0,0.000411,120]
[356754331,1743115847831,-19563.82310487,0.00041107,16]
[356754332,1743115847841,-703.16,0.000412,2]
[356754333,1743115847850,-500.0,0.00041211,2]
[356754334,1743115847859,-1000.0,0.00041214,20]
[356754335,1743115847869,-504.0,0.00041214,20]
[356754336,1743115847879,-500.0,0.00041233,90]
[356754337,1743115847888,-642.0,0.00041233,90]
[356754338,1743115847897,-500.0,0.00041233,90]
[356754339,1743115847906,-784.0,0.00041233,90]
[356754340,1743115847916,-884.0,0.00041233,2]
[356754341,1743115847925,-190.0,0.00041239,30]
[356754342,1743115847934,-500.0,0.00041259,30]
[356754343,1743115847944,-3516.889,0.0004128,30]
[356754344,1743115847953,-3000.0,0.00041308,60]
[356754345,1743115847963,-355.97227602,0.00041342,10]
[356754346,1743115847972,-500.0,0.00041369,14]
[356754347,1743115847982,-500.0,0.00041369,2]
[356754348,1743115847991,-376.7629718,0.00041369,2]
[356754349,1743115848000,-500.0,0.00041369,2]
[356754350,1743115848009,-500.0,0.00041369,2]
[356754351,1743115848018,-1135.81,0.00041369,18]
[356754352,1743115848028,-500.0,0.00041369,2]
[356754353,1743115848038,-500.0,0.00041369,2]
[356754354,1743115848047,-500.0,0.00041369,2]
[356754355,1743115848057,-1000.0,0.00041369,7]
[356754356,1743115848067,-500.0,0.00041369,2]
[356754357,1743115848077,-500.0,0.0004137,90]
[356754358,1743115848086,-642.0,0.0004137,90]
[356754359,1743115848095,-500.0,0.0004137,90]
[356754360,1743115848105,-784.0,0.0004137,90]
[356754361,1743115848114,-884.0,0.0004137,2]
[356754362,1743115848124,-300.0,0.000414,120]
[356754363,1743115848134,-500.0,0.00041408,30]
[356754364,1743115848143,-203.0,0.0004148,30]
[356754365,1743115848153,-151.0,0.0004148,120]
[356754366,1743115848162,-176.165401,0.0004148,120]
[356754367,1743115848171,-176.165401,0.0004148,120]
[356754368,1743115848180,-500.0,0.00041507,90]
[356754369,1743115848189,-642.0,0.00041507,90]
[356754370,1743115848199,-500.0,0.00041507,90]
[356754371,1743115848208,-784.0,0.00041507,90]
[356754372,1743115848218,-884.0,0.00041507,2]
[356754373,1743115848227,-500.0,0.00041567,30]
[356754374,1743115848237,-500.0,0.00041643,14]
[356754375,1743115848247,-500.0,0.00041643,2]
[356754376,1743115848256,-151.0,0.00041643,120]
[356754377,1743115848266,-325.299698,0.00041643,120]
[356754378,1743115848276,-325.299698,0.00041643,120]
[356754379,1743115848286,-546.760311,0.00041643,30]
[356754380,1743115848296,-546.760311,0.00041643,30]
[356754381,1743115848305,-500.0,0.00041643,2]
[356754382,1743115848315,-500.0,0.00041643,2]
[356754383,1743115848325,-1135.81,0.00041643,18]
[356754384,1743115848335,-228.84155438,0.00041643,2]
[356754385,1743115848346,-500.0,0.00041643,2]
[356754386,1743115848356,-2472.205469,0.00041643,120]
[356754387,1743115848366,-2472.205469,0.00041643,120]
[356754388,1743115848376,-500.0,0.00041643,2]
[356754389,1743115848385,-1000.0,0.00041643,7]
[356754390,1743115848395,-500.0,0.00041643,2]
[356754391,1743115848404,-250.0,0.00041644,10]
[356754392,1743115848414,-200.0,0.00041644,10]
[356754393,1743115848423,-500.0,0.00041644,90]
[356754394,1743115848433,-642.0,0.00041644,90]
[356754395,1743115848442,-500.0,0.00041644,90]
[356754396,1743115848452,-784.0,0.00041644,90]
[356754397,1743115848461,-884.0,0.00041644,2]
[356754398,1743115848471,-19563.82310487,0.00041693,16]
[356754399,1743115848480,-1000.0,0.00041752,10]
[356754400,1743115848490,-1000.0,0.00041752,10]
[356754401,1743115848500,-1000.0,0.00041752,10]
[356754402,1743115848510,-1000.0,0.00041752,10]
[356754403,1743115848519,-1000.0,0.00041752,10]
[356754404,1743115848529,-1000.0,0.00041752,10]
[356754405,1743115848539,-1000.0,0.00041752,7]
[356754406,1743115848548,-1000.0,0.00041752,10]
[356754407,1743115848558,-507.13718526,0.00041781,90]
[356754408,1743115848568,-642.0,0.00041781,90]
[356754409,1743115848578,-500.0,0.00041781,90]
[356754410,1743115848587,-784.0,0.00041781,90]
[356754411,1743115848597,-884.0,0.00041781,2]
[356754412,1743115848607,-302.59914663,0.00041797,10]
[356754413,1743115848616,-1000.0,0.00041852,7]
[356754414,1743115848626,-500.0,0.00041852,10]
[356754415,1743115848634,-1000.0,0.00041852,10]
[356754416,1743115848644,-502.37419339,0.00041852,10]
[356754417,1743115848654,-883.06858051,0.00041852,10]
[356754418,1743115848664,-1000.0,0.00041852,10]
[356754419,1743115848674,-1000.0,0.00041852,10]
[356754420,1743115848684,-1000.0,0.00041852,10]
[356754421,1743115848692,-1000.0,0.00041852,10]
[356754422,1743115848705,-3000.0,0.00041856,60]
[356754423,1743115848715,-500.0,0.00041917,14]
[356754424,1743115848726,-500.0,0.00041917,2]
[356754425,1743115848736,-500.0,0.00041917,2]
[356754426,1743115848746,-500.0,0.00041917,2]
[356754427,1743115848756,-1135.81,0.00041917,18]
[356754428,1743115848766,-500.0,0.00041917,2]
[356754429,1743115848776,-500.0,0.00041917,2]
[356754430,1743115848788,-1000.0,0.00041917,7]
[356754431,1743115848798,-500.0,0.00041917,2]
[356754432,1743115848808,-642.0,0.00041918,90]
[356754433,1743115848818,-500.0,0.00041918,90]
[356754434,1743115848828,-784.0,0.00041918,90]
[356754435,1743115848838,-884.0,0.00041918,2]
[356754436,1743115848849,-500.0,0.00041966,30]
[356754437,1743115848860,-398.71900106,0.0004198,2]
[356754438,1743115848870,-170.0,0.00042,120]
[356754439,1743115848880,-681.81,0.00042,2]
[356754440,1743115848889,-23894.0,0.00042,30]
[356754441,1743115848900,-673.07382181,0.00042,120]
[356754442,1743115848910,-2629.26528438,0.00042,30]
[356754443,1743115848920,-10657.0,0.00042,120]
[356754444,1743115848930,-1512.99056375,0.00042,120]
[356754445,1743115848940,-6230.13372374,0.00042,120]
[356754446,1743115848950,-999.87,0.00042,120]
[356754447,1743115848961,-166.200048,0.00042,120]
[356754448,1743115848972,-741.480269,0.00042,120]
[356754449,1743115848982,-500.0,0.00042047,30]
[356754450,1743115848992,-642.0,0.00042055,90]
[356754451,1743115849002,-500.0,0.00042055,90]
[356754452,1743115849014,-784.0,0.00042055,90]
[356754453,1743115849024,-884.0,0.00042055,2]
[356754454,1743115849034,-500.0,0.00042127,30]
[356754455,1743115849045,-500.0,0.00042154,30]
[356754456,1743115849055,-500.0,0.00042191,14]
[356754457,1743115849064,-500.0,0.00042191,2]
[356754458,1743115849074,-500.0,0.00042191,2]
[356754459,1743115849084,-500.0,0.00042191,2]
[356754460,1743115849094,-1135.81,0.00042191,18]
[356754461,1743115849103,-500.0,0.00042191,2]
[356754462,1743115849113,-179.27658707,0.00042191,2]
[356754463,1743115849122,-1000.0,0.00042191,7]
[356754464,1743115849131,-500.0,0.00042191,2]
[356754465,1743115849141,-350.0,0.00042192,10]
[356754466,1743115849151,-250.0,0.00042192,10]
[356754467,1743115849161,-642.0,0.00042192,90]
[356754468,1743115849170,-500.0,0.00042192,90]
[356754469,1743115849179,-784.0,0.00042192,90]
[356754470,1743115849188,-884.0,0.00042192,2]
[356754471,1743115849198,-499.3,0.000422,30]
[356754472,1743115849207,-500.0,0.0004224,30]
[356754473,1743115849216,-19563.82310487,0.00042279,17]
[356754474,1743115849226,-267.0,0.0004229,2]
[356754475,1743115849236,-267.0,0.0004229,2]
[356754476,1743115849246,-642.0,0.00042329,90]
[356754477,1743115849255,-865.97460307,0.00042329,90]
[356754478,1743115849265,-784.0,0.00042329,90]
[356754479,1743115849275,-884.0,0.00042329,2]
[356754480,1743115849284,-151.0,0.00042352,120]
[356754481,1743115849294,-151.0,0.00042352,110]
[356754482,1743115849303,-162.202776,0.00042352,120]
[356754483,1743115849313,-500.0,0.00042352,7]
[356754484,1743115849322,-2000.0,0.00042396,2]
[356754485,1743115849332,-3000.0,0.00042404,60]
[356754486,1743115849342,-500.0,0.00042409,30]
[356754487,1743115849351,-500.0,0.00042464,30]
[356754488,1743115849361,-500.0,0.00042465,14]
[356754489,1743115849370,-500.0,0.00042465,2]
[356754490,1743115849380,-500.0,0.00042465,2]
[356754491,1743115849390,-500.0,0.00042465,2]
[356754492,1743115849399,-1135.81,0.00042465,18]
[356754493,1743115849408,-500.3837911,0.00042465,2]
[356754494,1743115849418,-1091.39705833,0.00042465,7]
[356754495,1743115849428,-500.0,0.00042465,2]
[356754496,1743115849437,-642.0,0.00042466,90]
[356754497,1743115849447,-784.0,0.00042466,90]
[356754498,1743115849457,-884.0,0.00042466,2]
[356754499,1743115849466,-5422.69,0.000425,120]
[356754500,1743115849476,-200.0,0.0004254,120]
[356754501,1743115849485,-203.0,0.0004254,30]
[356754502,1743115849606,-643.24785066,0.00042603,90]
[356754503,1743115849616,-793.60445034,0.00042603,90]
[356754504,1743115849626,-903.72935711,0.00042603,2]
[356754505,1743115849635,-1000.0,0.00042649,20]
[356754506,1743115849645,-151.0,0.00042659,120]
[356754507,1743115849655,-151.0,0.00042659,120]
[356754508,1743115849664,-571.744593,0.00042659,120]
[356754509,1743115849674,-571.744593,0.00042659,120]
[356754510,1743115849684,-151.0,0.00042659,120]
[356754511,1743115849693,-151.0,0.00042659,120]
[356754512,1743115849707,-506.965905,0.00042659,120]
[356754513,1743115849716,-506.965905,0.00042659,120]
[356754514,1743115849725,-500.0,0.00042739,14]
[356754515,1743115849735,-500.0,0.00042739,2]
[356754516,1743115849745,-500.0,0.00042739,2]
[356754517,1743115849755,-500.0,0.00042739,2]
[356754518,1743115849764,-1135.81,0.00042739,18]
[356754519,1743115849776,-500.0,0.00042739,2]
[356754520,1743115849786,-184.17321088,0.0004274,10]
[356754521,1743115849796,-300.0,0.0004274,10]
[356754522,1743115849805,-500.0,0.00042766,30]
[356754523,1743115849815,-1000.0,0.00042786,20]
[356754524,1743115849825,-19563.82310487,0.00042866,17]
[356754525,1743115849835,-150.0,0.00042904,2]
[356754526,1743115849844,-2262.0,0.00042904,2]
[356754527,1743115849854,-1914.0,0.00042904,2]
[356754528,1743115849864,-400.0,0.00042904,2]
[356754529,1743115849874,-1000.0,0.00042923,20]
[356754530,1743115849883,-3000.0,0.00042952,60]
[356754531,1743115849893,-698.97899,0.00042952,120]